fUST/lending_fUST_20241228
["ID","MTS","AMOUNT","RATE_DAILY","PERIOD"]
[346935291,1735397445964,-500.0,0.00016708,2]
[346935292,1735397445975,-500.0,0.00016708,2]
[346935293,1735397445984,-500.0,0.00016708,2]
[346935294,1735397445995,-1000.0,0.000168,4]
[346935295,1735397446005,-1000.0,0.000168,5]
[346935296,1735397446015,-500.0,0.00016979,2]
[346935298,1735397446025,-225.74927692,0.00016979,2]
[346935299,1735397446038,-500.0,0.00016979,2]
[346935300,1735397446049,-2277.23,0.00016979,2]
[346935301,1735397446059,-500.0,0.00016979,2]
[346935302,1735397446070,-500.0,0.00016979,2]
[346935303,1735397446080,-500.0,0.00016979,2]
[346935304,1735397446089,-500.0,0.00016982,2]
[346935305,1735397446099,-500.0,0.00016982,2]
[346935306,1735397446109,-500.0,0.00016982,2]
[346935307,1735397446119,-500.0,0.00016999,2]
[346935308,1735397446129,-500.0,0.00016999,2]
[346935309,1735397446139,-6288.00785346,0.00017,2]
[346935435,1735398271393,500.0,0.00020496,120]
[346935438,1735398339115,-290.61165732,0.00013288,2]
[346935439,1735398339136,-290.61165732,0.00013422,2]
[346935440,1735398339157,-400.0,0.00013973,2]
[346935441,1735398339178,-300.0,0.00014966,2]
[346935442,1735398339198,-150.695,0.00014967,2]
[346935443,1735398339217,-723.02293742,0.00014967,2]
[346935444,1735398340093,-1384.97706258,0.00014967,2]
[346935445,1735398340116,-125.30415444,0.00014967,2]
[346935446,1735398439114,-400.0,0.00013973,2]
[346935447,1735398439137,-664.98884556,0.00014818,2]
[346935448,1735398439157,-68.27761881,0.00014967,2]
[346935449,1735398443104,-596.71122675,0.00014967,2]
[346935450,1735398443124,-449.6906084,0.00015392,2]
[346935451,1735398443146,-636.76233334,0.0001615,2]
[346935452,1735398445087,-158.58566666,0.0001615,2]
[346935453,1735398445111,-500.0,0.00016431,2]
[346935454,1735398445133,-500.0,0.00016431,2]
[346935455,1735398445270,-310.77144222,0.00016431,2]
[346935456,1735398449105,-189.22855778,0.00016431,2]
[346935457,1735398449127,-614.9,0.00016438,2]
[346935458,1735398449150,-500.0,0.00016705,2]
[346935459,1735398449173,-436.26721885,0.00016705,2]
[346935522,1735398632266,-189.22855778,0.00016267,2]
[346935524,1735398632276,-500.0,0.00016431,2]
[346935526,1735398632285,-500.0,0.00016431,2]
[346935528,1735398632295,-173.52,0.00016705,2]
[346935530,1735398632305,-500.0,0.00016705,2]
[346935532,1735398632314,-500.0,0.00016705,2]
[346935534,1735398632323,-2981.46475474,0.00016936,2]
[346935536,1735398632335,-500.0,0.00016979,2]
[346935538,1735398632344,-500.0,0.00016979,2]
[346935540,1735398632354,-168.051,0.00016999,2]
[346935542,1735398632363,-500.0,0.00016999,2]
[346935544,1735398632373,-621.84,0.00016999,2]
[346935546,1735398632382,-500.0,0.00016999,2]
[346935548,1735398632392,-500.0,0.00016999,2]
[346935550,1735398632402,-500.0,0.00016999,2]
[346935552,1735398632412,-500.0,0.00016999,2]
[346935554,1735398632421,-500.0,0.00016999,2]
[346935556,1735398632430,-500.0,0.00016999,2]
[346935558,1735398632438,-589.28,0.00016999,2]
[346935560,1735398632448,-500.0,0.00016999,2]
[346935562,1735398632460,-2013.41,0.00016999,2]
[346935565,1735398632470,-500.0,0.00016999,2]
[346935567,1735398632479,-237.94734625,0.00016999,2]
[346935569,1735398632488,-500.0,0.00016999,2]
[346935572,1735398632501,-500.0,0.00016999,2]
[346935575,1735398632510,-500.0,0.00016999,2]
[346935578,1735398632519,-500.0,0.00016999,2]
[346935581,1735398632529,-36675.53898357,0.00017,2]
[346935584,1735398632538,-600.0,0.00017,2]
[346935587,1735398632547,-300.0,0.00017,6]
[346935589,1735398632557,-500.0,0.00017054,2]
[346935591,1735398632566,-210.0,0.0001709,2]
[346935593,1735398632575,-211.01,0.0001709,2]
[346935595,1735398632584,-1908.77,0.000171,2]
[346935597,1735398632594,-500.0,0.00017117,2]
[346935599,1735398632603,-500.0,0.00017253,2]
[346935601,1735398632612,-500.0,0.00017253,2]
[346935603,1735398632621,-2654.7064301,0.00017272,2]
[346935605,1735398632630,-65147.15127349,0.00017272,2]
[346935607,1735398632640,-500.0,0.00017273,2]
[346935609,1735398632649,-2013.41,0.00017273,2]
[346935611,1735398632658,-500.0,0.00017273,2]
[346935613,1735398632668,-500.0,0.00017273,2]
[346935615,1735398632677,-436.19,0.00017273,2]
[346935617,1735398632688,-219.257322,0.00017462,2]
[346935619,1735398632697,-219.257322,0.0001749,2]
[346935621,1735398632706,-219.257322,0.00017518,2]
[346935622,1735398632716,-500.0,0.00017527,2]
[346935624,1735398632725,-211.99196723,0.00017527,2]
[346935626,1735398632735,-219.257322,0.00017545,2]
[346935628,1735398632744,-500.0,0.00017547,2]
[346935630,1735398632757,-2013.41,0.00017547,2]
[346935632,1735398632767,-500.0,0.00017547,2]
[346935633,1735398632776,-500.0,0.00017547,2]
[346935634,1735398632785,-160.37057183,0.00017561,2]
[346935635,1735398632795,-150.3598533,0.00017562,2]
[346935636,1735398632804,-150.24,0.00017562,2]
[346935638,1735398632813,-154.37974228,0.00017562,2]
[346935640,1735398632824,-300.19,0.00017562,2]
[346935642,1735398632832,-150.24,0.00017562,2]
[346935643,1735398632847,-150.24,0.00017562,2]
[346935645,1735398632856,-150.24,0.00017562,2]
[346935647,1735398632867,-150.24,0.00017562,2]
[346935649,1735398632876,-151.06268643,0.00017562,2]
[346935652,1735398632887,-2973.1828022,0.00017562,2]
[346935654,1735398632896,-2973.1828022,0.00017562,2]
[346935656,1735398632905,-2973.1828022,0.00017562,2]
[346935657,1735398632916,-2973.1828022,0.00017562,2]
[346935659,1735398632926,-2973.1828022,0.00017562,2]
[346935661,1735398632935,-2973.1828022,0.00017562,2]
[346935663,1735398632944,-2973.1828022,0.00017562,2]
[346935665,1735398632953,-2973.1828022,0.00017562,2]
[346935667,1735398632964,-2973.1828022,0.00017562,2]
[346935669,1735398632974,-2973.1828022,0.00017562,2]
[346935671,1735398632983,-2973.1828022,0.00017562,2]
[346935672,1735398632992,-2973.1828022,0.00017562,2]
[346935673,1735398633003,-2973.1828022,0.00017562,2]
[346935674,1735398633013,-2973.1828022,0.00017562,2]
[346935675,1735398633022,-2973.1828022,0.00017562,2]
[346935676,1735398633032,-2973.1828022,0.00017562,2]
[346935677,1735398633042,-2973.1828022,0.00017562,2]
[346935678,1735398633052,-2973.1828022,0.00017562,2]
[346935679,1735398633061,-2973.1828022,0.00017562,2]
[346935680,1735398633072,-2973.18,0.00017562,2]
[346935681,1735398633082,-4459.77420329,0.00017562,2]
[346935682,1735398633091,-4459.77420329,0.00017562,2]
[346935683,1735398633101,-4459.77420329,0.00017562,2]
[346935684,1735398633111,-4459.77420329,0.00017562,2]
[346935685,1735398633121,-4459.77420329,0.00017562,2]
[346935686,1735398633131,-4459.77420329,0.00017562,2]
[346935687,1735398633141,-4459.77420329,0.00017562,2]
[346935688,1735398633150,-4459.77420329,0.00017562,2]
[346935689,1735398633159,-4459.77420329,0.00017562,2]
[346935690,1735398633170,-4459.77420329,0.00017562,2]
[346935691,1735398633180,-4459.77420329,0.00017562,2]
[346935692,1735398633190,-4459.77420329,0.00017562,2]
[346935693,1735398633200,-4459.77420329,0.00017562,2]
[346935694,1735398633209,-4459.77420329,0.00017562,2]
[346935695,1735398633219,-4459.77420329,0.00017562,2]
[346935696,1735398633229,-1516.46643162,0.00017562,2]
[346935697,1735398633242,-950.473592,0.00017562,2]
[346935710,1735398638213,-179.92919096,0.000169,2]
[346935711,1735398638222,-1115.80809615,0.00017562,2]
[346935712,1735398638235,-877.02608352,0.00017562,2]
[346935713,1735398638245,-502.97391598,0.00017562,2]
[346935714,1735398638259,-1446.2725006,0.00017562,2]
[346935715,1735398638353,-2510.52778671,0.00017562,2]
[346935716,1735398638363,-4459.77420329,0.00017562,2]
[346935717,1735398638373,-4459.77420329,0.00017562,2]
[346935718,1735398638383,-4459.77,0.00017562,2]
[346935719,1735398638392,-173.45604605,0.00017562,2]
[346935720,1735398638402,-173.45604605,0.00017562,2]
[346935721,1735398638411,-173.45604605,0.00017562,2]
[346935722,1735398638421,-173.45604605,0.00017562,2]
[346935723,1735398638431,-173.45,0.00017562,2]
[346935724,1735398638441,-162.61504317,0.00017562,2]
[346935725,1735398638450,-162.61504317,0.00017562,2]
[346935726,1735398638459,-162.61504317,0.00017562,2]
[346935727,1735398638469,-162.61504317,0.00017562,2]
[346935728,1735398638478,-162.61504317,0.00017562,2]
[346935729,1735398638488,-162.61504317,0.00017562,2]
[346935730,1735398638498,-162.61504317,0.00017562,2]
[346935731,1735398638510,-162.61,0.00017562,2]
[346935732,1735398638519,-32539.2812875,0.00017562,2]
[346935733,1735398638529,-209.00561879,0.00017562,2]
[346935734,1735398638539,-209.00561879,0.00017562,2]
[346935735,1735398638548,-209.00561879,0.00017562,2]
[346935736,1735398638557,-209.00561879,0.00017562,2]
[346935737,1735398638567,-209.00561879,0.00017562,2]
[346935738,1735398638576,-209.00561879,0.00017562,2]
[346935739,1735398638586,-209.00561879,0.00017562,2]
[346935740,1735398638595,-209.00561879,0.00017562,2]
[346935741,1735398638605,-209.00561879,0.00017562,2]
[346935742,1735398638614,-209.00561879,0.00017562,2]
[346935743,1735398638624,-209.00561879,0.00017562,2]
[346935744,1735398638633,-209.00561879,0.00017562,2]
[346935745,1735398638642,-209.00561879,0.00017562,2]
[346935746,1735398638652,-209.00561879,0.00017562,2]
[346935747,1735398638661,-209.00561879,0.00017562,2]
[346935748,1735398638670,-209.00561879,0.00017562,2]
[346935749,1735398638680,-209.00561879,0.00017562,2]
[346935750,1735398638689,-209.00561879,0.00017562,2]
[346935751,1735398638699,-209.00561879,0.00017562,2]
[346935752,1735398638708,-209.0,0.00017562,2]
[346935753,1735398638722,-313.50842819,0.00017562,2]
[346935754,1735398638731,-313.50842819,0.00017562,2]
[346935755,1735398638741,-313.50842819,0.00017562,2]
[346935756,1735398638752,-313.50842819,0.00017562,2]
[346935757,1735398638762,-313.50842819,0.00017562,2]
[346935758,1735398638771,-313.50842819,0.00017562,2]
[346935760,1735398638781,-313.50842819,0.00017562,2]
[346935761,1735398638790,-313.50842819,0.00017562,2]
[346935762,1735398638800,-313.50842819,0.00017562,2]
[346935763,1735398638809,-313.50842819,0.00017562,2]
[346935764,1735398638818,-313.50842819,0.00017562,2]
[346935765,1735398638827,-313.50842819,0.00017562,2]
[346935766,1735398638838,-313.50842819,0.00017562,2]
[346935767,1735398638849,-313.50842819,0.00017562,2]
[346935768,1735398638858,-313.50842819,0.00017562,2]
[346935769,1735398638867,-313.50842819,0.00017562,2]
[346935770,1735398638878,-313.50842819,0.00017562,2]
[346935771,1735398638887,-313.50842819,0.00017562,2]
[346935772,1735398638897,-313.50842819,0.00017562,2]
[346935773,1735398638906,-313.5,0.00017562,2]
[346935774,1735398638916,-500.0,0.00017573,2]
[346935775,1735398638925,-500.0,0.00017573,2]
[346935776,1735398638935,-417.55606696,0.00017573,2]
[346935777,1735398638944,-227.52824816,0.00017573,2]
[346935778,1735398638953,-501.23058084,0.00017573,2]
[346935779,1735398638963,-500.0,0.00017573,2]
[346935780,1735398638972,-423.73092737,0.00017573,2]
[346935781,1735398638982,-500.0,0.00017573,2]
[346935782,1735398638991,-3469.22329198,0.00017573,2]
[346935783,1735398639000,-219.257322,0.00017573,2]
[346935784,1735398639010,-151.0,0.000176,2]
[346935785,1735398639019,-1249.31521142,0.0001766,2]
[346935786,1735398639029,-38559.9081554,0.00017662,4]
[346935787,1735398639041,-121842.55930116,0.00017662,4]
[346935788,1735398639053,-34034.69954468,0.00017662,4]
[346935789,1735398639064,-33044.89080737,0.00017662,4]
[346935790,1735398639076,-556.48166134,0.00017662,4]
[346935800,1735398640275,-522.48074656,0.00016999,2]
[346935801,1735398640285,-500.0,0.00016999,2]
[346935802,1735398640295,-8061.7875921,0.00017662,4]
[346935803,1735398640307,-1752.5,0.00017662,4]
[346935821,1735398643182,-179.92919096,0.00016731,2]
[346935822,1735398643192,-500.0,0.00016999,2]
[346935823,1735398643202,-500.0,0.00017573,2]
[346935824,1735398643211,-7144.5708089,0.00017662,4]
[346935825,1735398643223,-3311.6,0.00017662,4]
[346935826,1735398643234,-9771.87812225,0.00017662,4]
[346935843,1735398646182,-294.03667809,0.000153,2]
[346935844,1735398646192,-12093.26035814,0.00017662,4]
[346935953,1735398751414,7082.12,0.00025,120]
[346936029,1735399024119,355.36431335,0.00025,120]
[346936049,1735399094847,1000.0,0.00025,120]
[346936057,1735399546143,-1288.94714213,0.00013695,5]
[346936058,1735399559358,-2611.24682714,0.00013695,5]
[346936059,1735399559379,-512.67039582,0.00013833,5]
[346936061,1735399625168,-920.90156244,0.00013558,5]
[346936063,1735399641132,-168.31641685,0.00013558,5]
[346936064,1735399642089,-450.0,0.00013558,5]
[346936065,1735399647106,-836.71550811,0.00013558,5]
[346936066,1735399647128,-331.19312817,0.00013695,5]
[346936122,1735399832241,-254.79167661,0.0001,2]
[346936124,1735399832251,-300.0,0.00013899,2]
[346936126,1735399832260,-45.20832339,0.000139,2]
[346936138,1735399832375,-384.07,0.000139,2]
[346936195,1735399838151,-446.20833079,0.000139,2]
[346936199,1735399838181,-15546.47767561,0.000139,2]
[346936201,1735399838191,-400.0,0.00013973,2]
[346936203,1735399838201,-991.5515726,0.00013992,2]
[346936205,1735399838210,-269.46400186,0.00014114,2]
[346936207,1735399838219,-565.13947485,0.000149,2]
[346936209,1735399838229,-180.08298264,0.00014972,2]
[346936211,1735399838238,-500.0,0.00014972,2]
[346936213,1735399838247,-500.0,0.00014972,2]
[346936215,1735399838256,-190.49895179,0.00014972,2]
[346936217,1735399838266,-500.0,0.00014972,2]
[346936219,1735399838275,-500.0,0.00014972,2]
[346936220,1735399838285,-500.0,0.00014972,2]
[346936222,1735399838295,-500.0,0.00014972,2]
[346936224,1735399838307,-500.0,0.00014972,2]
[346936226,1735399838316,-500.0,0.00014972,2]
[346936228,1735399838325,-157.89063294,0.00014972,2]
[346936230,1735399838335,-500.0,0.00014972,2]
[346936232,1735399838346,-500.0,0.00014972,2]
[346936233,1735399838355,-500.0,0.00014972,2]
[346936234,1735399838364,-500.0,0.00014972,2]
[346936235,1735399838374,-589.36414949,0.00014972,2]
[346936236,1735399838383,-500.0,0.00014972,2]
[346936237,1735399838392,-500.0,0.00014972,2]
[346936238,1735399838401,-500.0,0.00014972,2]
[346936240,1735399838411,-500.0,0.00014972,2]
[346936241,1735399838420,-501.36817394,0.00014973,2]
[346936242,1735399838431,-250.54119936,0.00014999,2]
[346936243,1735399838440,-500.0,0.00014999,2]
[346936244,1735399838450,-500.0,0.00014999,2]
[346936245,1735399838459,-500.0,0.00014999,2]
[346936246,1735399838468,-500.0,0.00014999,2]
[346936247,1735399838477,-148878.03867091,0.00015,2]
[346936248,1735399838486,-158.68143815,0.00015226,2]
[346936249,1735399838495,-287.0,0.00015229,2]
[346936250,1735399838505,-500.0,0.00015273,2]
[346936251,1735399838514,-276.02157574,0.00015273,2]
[346936252,1735399838523,-500.0,0.00015273,2]
[346936253,1735399838534,-500.0,0.00015273,2]
[346936254,1735399838543,-9954.2065349,0.00015326,2]
[346936255,1735399838552,-1057.627,0.00015483,2]
[346936256,1735399838561,-350.388,0.00015483,2]
[346936257,1735399838570,-381.207565,0.00015505,2]
[346936258,1735399838579,-500.0,0.00015547,2]
[346936259,1735399838588,-500.0,0.00015547,2]
[346936260,1735399838597,-196.220806,0.00015571,2]
[346936261,1735399838606,-161.3218,0.00015778,2]
[346936262,1735399838615,-17259.26304558,0.00015787,2]
[346936263,1735399838625,-500.0,0.00015821,2]
[346936264,1735399838634,-500.0,0.00015821,2]
[346936265,1735399838643,-161.3218,0.00015857,2]
[346936266,1735399838653,-245.46812813,0.00016,2]
[346936267,1735399838662,-10000.0,0.00016,2]
[346936268,1735399838671,-10000.0,0.00016,2]
[346936269,1735399838683,-10000.0,0.00016,2]
[346936270,1735399838693,-8528.0,0.00016,2]
[346936271,1735399838702,-158.68143813,0.00016008,2]
[346936272,1735399838712,-500.0,0.00016095,2]
[346936273,1735399838721,-500.0,0.00016095,2]
[346936274,1735399838731,-1200.0,0.00016239,2]
[346936275,1735399838740,-500.0,0.00016369,2]
[346936276,1735399838750,-500.0,0.00016369,2]
[346936277,1735399838759,-500.0,0.00016556,2]
[346936278,1735399838768,-500.0,0.00016643,2]
[346936279,1735399838778,-500.0,0.00016643,2]
[346936280,1735399838787,-352.0334382,0.00016741,2]
[346936281,1735399838797,-837.627,0.0001678,2]
[346936282,1735399838806,-158.68143813,0.00016789,2]
[346936283,1735399838815,-153.5741261,0.00016878,2]
[346936284,1735399838825,-153.0,0.00016878,2]
[346936285,1735399838834,-153.0,0.00016878,2]
[346936286,1735399838843,-153.0,0.00016878,2]
[346936287,1735399838853,-153.0,0.00016878,2]
[346936288,1735399838863,-153.0,0.00016878,2]
[346936289,1735399838872,-153.0,0.00016878,2]
[346936290,1735399838882,-153.0,0.00016878,2]
[346936291,1735399838891,-153.0,0.00016878,2]
[346936292,1735399838901,-500.0,0.00016917,2]
[346936293,1735399838911,-500.0,0.00016917,2]
[346936294,1735399838920,-500.0,0.00016989,2]
[346936295,1735399838932,-500.0,0.00016989,2]
[346936296,1735399838942,-241.14426071,0.00016989,2]
[346936297,1735399838953,-500.0,0.00016989,2]
[346936298,1735399838963,-500.0,0.00016989,2]
[346936299,1735399838972,-500.0,0.00016989,2]
[346936300,1735399838982,-500.0,0.00016989,2]
[346936301,1735399838991,-500.0,0.00016989,2]
[346936302,1735399839001,-500.0,0.00016989,2]
[346936303,1735399839011,-500.0,0.00016989,2]
[346936304,1735399839020,-3214.42,0.00016989,2]
[346936305,1735399839029,-500.0,0.00016989,2]
[346936306,1735399839039,-26622.73872321,0.0001699,2]
[346936307,1735399839048,-604.04368356,0.00016997,2]
[346936308,1735399839058,-503.54,0.00016997,2]
[346936309,1735399839067,-500.0,0.00016997,2]
[346936310,1735399839076,-500.0,0.00016997,2]
[346936311,1735399839086,-500.0,0.00016997,2]
[346936312,1735399839107,-500.0,0.00016997,2]
[346936313,1735399839116,-500.0,0.00016997,2]
[346936314,1735399839126,-500.0,0.00016997,2]
[346936315,1735399839136,-500.0,0.00016997,2]
[346936316,1735399839270,-500.0,0.00016997,2]
[346936317,1735399839280,-500.0,0.00016997,2]
[346936318,1735399839290,-504.35,0.00016997,2]
[346936319,1735399839303,-500.0,0.00016997,2]
[346936320,1735399839312,-553.15479109,0.00016997,2]
[346936321,1735399839322,-500.0,0.00016997,2]
[346936322,1735399839332,-500.0,0.00016997,2]
[346936323,1735399839342,-500.0,0.00016997,2]
[346936324,1735399839351,-500.0,0.00016997,2]
[346936325,1735399839360,-500.0,0.00016997,2]
[346936326,1735399839369,-500.0,0.00016997,2]
[346936327,1735399839379,-500.0,0.00016997,2]
[346936328,1735399839388,-500.0,0.00016997,2]
[346936329,1735399839398,-500.0,0.00016997,2]
[346936330,1735399839407,-500.0,0.00016997,2]
[346936331,1735399839416,-500.0,0.00016997,2]
[346936332,1735399839426,-500.0,0.00016997,2]
[346936333,1735399839438,-500.0,0.00016997,2]
[346936334,1735399839448,-500.0,0.00016997,2]
[346936335,1735399839458,-500.0,0.00016997,2]
[346936336,1735399839468,-500.0,0.00016997,2]
[346936337,1735399839478,-500.0,0.00016997,2]
[346936338,1735399839488,-500.0,0.00016997,2]
[346936339,1735399839498,-500.0,0.00016997,2]
[346936340,1735399839507,-500.0,0.00016997,2]
[346936341,1735399839517,-500.0,0.00016997,2]
[346936342,1735399839526,-612.56,0.00016997,2]
[346936343,1735399839536,-502.84611419,0.00016997,2]
[346936344,1735399839545,-464.38,0.00016997,2]
[346936345,1735399839554,-654.99,0.00016997,2]
[346936346,1735399839563,-221.76,0.00016997,2]
[346936347,1735399839572,-500.0,0.00016997,2]
[346936348,1735399839582,-425.63,0.00016997,2]
[346936349,1735399839591,-500.0,0.00016997,2]
[346936350,1735399839601,-500.0,0.00016997,2]
[346936351,1735399839611,-500.0,0.00016997,2]
[346936352,1735399839620,-500.0,0.00016997,2]
[346936353,1735399839629,-533.2830051,0.00016997,2]
[346936354,1735399839639,-500.0,0.00016997,2]
[346936355,1735399839649,-505.84399917,0.00016997,2]
[346936356,1735399839658,-506.48215733,0.00016997,2]
[346936358,1735399839667,-500.0,0.00016997,2]
[346936360,1735399839676,-500.0,0.00016997,2]
[346936361,1735399839686,-500.0,0.00016997,2]
[346936363,1735399839695,-436.39870844,0.00016997,2]
[346936364,1735399839704,-500.0,0.00016997,2]
[346936365,1735399839714,-500.0,0.00016997,2]
[346936367,1735399839723,-500.0,0.00016997,2]
[346936368,1735399839733,-500.0,0.00016997,2]
[346936369,1735399839742,-500.0,0.00016997,2]
[346936370,1735399839751,-500.0,0.00016997,2]
[346936371,1735399839761,-587.32,0.00016997,2]
[346936372,1735399839771,-500.0,0.00016997,2]
[346936373,1735399839780,-500.0,0.00016997,2]
[346936374,1735399839789,-500.0,0.00016997,2]
[346936375,1735399839799,-500.0,0.00016997,2]
[346936376,1735399839809,-500.0,0.00016997,2]
[346936377,1735399839819,-500.0,0.00016998,2]
[346936378,1735399839829,-250.739,0.00016998,2]
[346936379,1735399839838,-500.0,0.00016998,2]
[346936380,1735399839847,-500.0,0.00016998,2]
[346936381,1735399839857,-500.0,0.00016998,2]
[346936382,1735399839867,-339.76822635,0.00016998,2]
[346936383,1735399839876,-433.86525514,0.00016998,2]
[346936385,1735399839886,-500.81242823,0.00016998,2]
[346936387,1735399839896,-500.0,0.00016998,2]
[346936389,1735399839905,-500.0,0.00016998,2]
[346936391,1735399839914,-500.0,0.00016998,2]
[346936392,1735399839924,-500.0,0.00016998,2]
[346936394,1735399839935,-501.47277047,0.00016998,2]
[346936396,1735399839944,-611.61575657,0.00016998,2]
[346936398,1735399839953,-500.0,0.00016998,2]
[346936399,1735399839963,-369.99513233,0.00016998,2]
[346936400,1735399839972,-500.0,0.00016998,2]
[346936401,1735399839982,-500.0,0.00016998,2]
[346936402,1735399839991,-500.0,0.00016998,2]
[346936403,1735399840000,-500.0,0.00016998,2]
[346936404,1735399840010,-500.0,0.00016998,2]
[346936406,1735399840019,-500.0,0.00016998,2]
[346936408,1735399840028,-514.57697876,0.00016998,2]
[346936410,1735399840038,-500.0,0.00016998,2]
[346936412,1735399840047,-500.0,0.00016998,2]
[346936414,1735399840056,-500.0,0.00016998,2]
[346936416,1735399840065,-500.0,0.00016998,2]
[346936417,1735399840074,-500.0,0.00016998,2]
[346936419,1735399840083,-500.0,0.00016998,2]
[346936421,1735399840092,-500.0,0.00016998,2]
[346936423,1735399840102,-500.0,0.00016998,2]
[346936425,1735399840111,-564.72,0.00016998,2]
[346936427,1735399840120,-500.0,0.00016998,2]
[346936429,1735399840132,-500.0,0.00016998,2]
[346936431,1735399840141,-501.88889404,0.00016998,2]
[346936433,1735399840150,-500.0,0.00016998,2]
[346936435,1735399840160,-504.14699879,0.00016998,2]
[346936437,1735399840170,-500.0,0.00016998,2]
[346936439,1735399840182,-500.0,0.00016998,2]
[346936441,1735399840191,-500.0,0.00016998,2]
[346936443,1735399840200,-500.0,0.00016998,2]
[346936445,1735399840209,-503.232479,0.00016998,2]
[346936447,1735399840219,-500.0,0.00016998,2]
[346936449,1735399840228,-500.0,0.00016998,2]
[346936451,1735399840238,-507.37912264,0.00016998,2]
[346936453,1735399840248,-500.0,0.00016998,2]
[346936455,1735399840257,-500.0,0.00016998,2]
[346936457,1735399840266,-500.0,0.00016998,2]
[346936459,1735399840275,-500.0,0.00016998,2]
[346936461,1735399840284,-500.0,0.00016998,2]
[346936463,1735399840295,-500.0,0.00016998,2]
[346936465,1735399840305,-500.49638502,0.00016999,2]
[346936467,1735399840314,-500.0,0.00016999,2]
[346936469,1735399840323,-500.0,0.00016999,2]
[346936471,1735399840332,-500.0,0.00016999,2]
[346936473,1735399840342,-500.0,0.00016999,2]
[346936474,1735399840352,-522.3915371,0.00016999,2]
[346936476,1735399840360,-500.0,0.00016999,2]
[346936479,1735399840372,-500.0,0.00016999,2]
[346936481,1735399840382,-500.0,0.00016999,2]
[346936483,1735399840391,-500.0,0.00016999,2]
[346936485,1735399840400,-500.0,0.00016999,2]
[346936487,1735399840410,-1000.0,0.00016999,2]
[346936488,1735399840419,-500.0,0.00016999,2]
[346936490,1735399840428,-502.1249605,0.00016999,2]
[346936492,1735399840438,-625.73,0.00016999,2]
[346936494,1735399840447,-10000.0,0.00017,2]
[346936496,1735399840457,-10000.0,0.00017,17]
[346936498,1735399840466,-500.44056644,0.00017071,2]
[346936500,1735399840475,-1717.9,0.000171,2]
[346936502,1735399840485,-500.0,0.00017191,2]
[346936504,1735399840494,-500.0,0.00017263,2]
[346936506,1735399840503,-500.0,0.00017263,2]
[346936507,1735399840512,-500.0,0.00017263,2]
[346936508,1735399840522,-500.0,0.00017263,2]
[346936509,1735399840531,-500.0,0.00017263,2]
[346936510,1735399840540,-500.0,0.00017263,2]
[346936511,1735399840550,-3214.42,0.00017263,2]
[346936512,1735399840558,-500.0,0.00017271,2]
[346936513,1735399840568,-500.0,0.00017271,2]
[346936514,1735399840578,-500.0,0.00017271,2]
[346936515,1735399840587,-500.0,0.00017271,2]
[346936516,1735399840596,-500.0,0.00017271,2]
[346936517,1735399840606,-500.0,0.00017271,2]
[346936518,1735399840615,-326.45,0.00017271,2]
[346936519,1735399840624,-500.0,0.00017271,2]
[346936520,1735399840633,-500.0,0.00017271,2]
[346936521,1735399840642,-500.0,0.00017271,2]
[346936522,1735399840651,-612.95,0.00017271,2]
[346936523,1735399840660,-654.99,0.00017271,2]
[346936524,1735399840670,-514.89,0.00017271,2]
[346936525,1735399840679,-185.25116886,0.00017271,2]
[346936527,1735399840689,-587.32,0.00017271,2]